bitfinex-derivatives/quotes_ETHF0:USTF0_20240923
["timestamp","ask_amount","ask_price","bid_price","bid_amount"]
[1727066842710,2.05,2660.6,2660.0,3.2078]
[1727066842711,5.8084,2660.6,2660.0,3.2078]
[1727066842916,2.05,2660.4,2660.1,0.5952]
[1727066843114,2.05,2660.4,2660.2,0.6059]
[1727066844411,2.05,2660.4,2660.1,0.5952]
[1727066844617,2.6347,2660.4,2660.1,0.5952]
[1727066845414,2.05,2660.4,2660.1,0.5952]
[1727066846512,2.05,2660.4,2660.1,0.9711]
[1727066846819,2.05,2660.4,2660.1,0.5952]
[1727066847212,2.05,2660.4,2660.1,0.9711]
[1727066848811,0.96054,2660.6,2660.1,0.9711]
[1727066848812,2.05,2660.6,2660.3,3.2078]
[1727066849018,2.05,2660.6,2660.4,0.6114]
[1727066849318,2.05,2660.6,2660.4,41.4114]
[1727066850919,2.05,2660.6,2660.4,0.6114]
[1727066851715,2.05,2660.6,2660.5,0.6285]
[1727066851916,2.05,2660.8,2660.6,0.37582]
[1727066852312,2.05,2660.8,2660.7,0.37582]
[1727066852513,2.05,2660.8,2660.6,0.37583]
[1727066852909,2.05,2660.8,2660.5,4.21214]
[1727066853314,2.05,2660.6,2660.5,3.8363]
[1727066853617,2.05,2660.6,2660.5,4.21215]
[1727066853822,2.05,2660.6,2660.5,3.8363]
[1727066855324,0.37587,2660.4,2660.3,3.2078]
[1727066855514,2.05,2660.4,2660.3,3.2078]
[1727066856117,2.05,2660.4,2660.3,4.4837]
[1727066856516,2.05,2660.4,2660.3,3.2078]
[1727066858828,1.97995701,2660.7,2660.3,3.2078]
[1727066859123,2.05,2660.4,2660.3,3.2078]
[1727066860530,0.97272701,2660.8,2660.3,6.967]
[1727066860824,2.05,2660.9,2660.7,0.37582]
[1727066861021,2.05,2660.9,2660.6,3.2078]
[1727066861220,2.05,2660.9,2660.7,0.6211]
[1727066861726,2.42579,2660.9,2660.7,0.6211]
[1727066862029,2.05,2660.9,2660.7,0.6211]
[1727066862729,0.37582,2660.7,2660.6,3.2078]
[1727066862928,0.37582,2660.7,2660.4,0.6388]
[1727066863122,2.05,2660.5,2660.4,0.6388]
[1727066863319,2.05,2660.5,2660.1,3.2078]
[1727066863525,2.05,2660.2,2660.1,3.2078]
[1727066865726,6.18509,2660.2,2660.1,3.2078]
[1727066866036,7.15781701,2660.2,2660.1,3.2078]
[1727066867240,7.64413566,2660.2,2660.1,3.2078]
[1727066867529,7.83219792,2660.2,2660.1,3.2078]
[1727066867932,7.82930316,2660.2,2660.1,3.2078]
[1727066868131,6.37315226,2660.2,2660.1,3.2078]
[1727066869534,6.37315397,2660.2,2660.1,3.2078]
[1727066869830,7.82986632,2660.2,2660.1,3.2078]
[1727066870133,6.37315397,2660.2,2660.1,3.2078]
[1727066871336,8.31854819,2660.2,2660.1,3.2078]
[1727066871837,0.37592,2660.0,2659.5,3.58378]
[1727066872032,3.02157861,2659.9,2659.6,40.8]
[1727066873232,3.02157861,2659.9,2659.7,0.37596]
[1727066873233,0.97157861,2659.8,2659.7,0.37596]
[1727066873435,3.02157861,2659.9,2659.6,41.17596]
[1727066874133,3.02157861,2659.9,2659.6,40.8]
[1727066874332,0.97157861,2659.8,2659.6,40.8]
[1727066874642,0.97157861,2659.8,2659.6,41.17597]
[1727066875739,3.02157861,2659.9,2659.6,41.17597]
[1727066875935,0.97157861,2659.8,2659.6,41.17597]
[1727066876427,3.02157861,2659.7,2659.5,3.2078]
[1727066876829,0.97157861,2659.6,2659.5,3.58378]
[1727066877124,2.05,2659.7,2659.5,3.58378]
[1727066877125,3.02157861,2659.7,2659.5,3.58378]
[1727066877637,3.02157861,2659.7,2659.5,3.2078]
[1727066878030,3.02157861,2659.7,2659.6,3.2078]
[1727066879634,3.02157861,2659.7,2659.4,1.58969]
[1727066879835,2.05,2659.5,2659.4,1.58969]
[1727066880031,2.05,2659.5,2659.4,0.37599]
[1727066880331,2.05,2659.5,2659.3,44.0078]
[1727066880332,0.376,2659.4,2659.3,3.2078]
[1727066880727,1.34757861,2659.4,2659.3,3.2078]
[1727066880932,0.97157861,2659.4,2659.3,3.2078]
[1727066881234,1.34757861,2659.4,2659.3,3.2078]
[1727066881533,0.376,2659.4,2659.3,3.2078]
[1727066881939,3.02157861,2659.5,2659.3,3.2078]
[1727066881940,3.39756861,2659.5,2659.3,3.2078]
[1727066882345,0.37604,2659.2,2659.0,3.8481]
[1727066882542,2.05,2659.1,2659.0,3.8481]
[1727066884842,2.05,2659.1,2659.0,3.2078]
[1727066885035,2.05,2659.1,2658.7,4.3883]
[1727066885232,2.05,2658.8,2658.7,4.3883]
[1727066885936,2.05,2658.8,2658.7,4.7644]
[1727066886136,2.05,2659.0,2658.7,8.52519]
[1727066886345,2.05,2658.8,2658.7,4.3883]
[1727066887235,2.05,2658.8,2658.7,4.7644]
[1727066887449,2.05,2659.0,2658.9,0.37607]
[1727066887636,2.05,2659.0,2658.7,4.3883]
[1727066888047,2.05,2659.0,2658.8,0.37608]
[1727066888347,2.05,2659.0,2658.9,41.4083]
[1727066889838,2.05,2659.0,2658.9,0.6083]
[1727066890238,2.05,2659.0,2658.9,41.4083]
[1727066892035,0.97000649,2659.4,2658.9,45.1691]
[1727066892236,4.127,2659.8,2659.1,3.2078]
[1727066892443,0.37597,2659.6,2659.5,3.2078]
[1727066892948,4.13597,2659.6,2659.5,3.2078]
[1727066893650,6.18597,2659.6,2659.5,3.2078]
[1727066894356,15.98780649,2659.6,2658.9,0.6083]
[1727066894538,15.98780649,2659.6,2658.9,1.2413]
[1727066894539,2.05,2659.0,2658.9,1.2413]
[1727066895036,0.97000649,2659.5,2658.9,1.2413]
[1727066895242,2.05,2659.0,2658.9,4.4491]
[1727066895848,2.05,2659.0,2658.9,1.2413]
[1727066896350,2.05,2659.0,2658.9,1.61737]
[1727066896539,2.05,2659.0,2658.9,5.0021]
[1727066896739,2.42606,2659.0,2658.9,1.2413]
[1727066896947,2.42606,2659.0,2658.9,0.633]
[1727066897145,2.05,2659.0,2658.9,0.633]
[1727066898848,2.42606,2659.0,2658.9,0.633]
[1727066899051,0.37609,2658.8,2658.7,0.5841]
[1727066899247,6.18689,2658.8,2658.5,1.258]
[1727066899449,2.05,2658.6,2658.5,1.258]
[1727066899949,2.05,2658.6,2658.5,5.39573]
[1727066900155,2.05,2658.6,2658.5,6.01393]
[1727066900549,2.05,2658.6,2658.5,5.6378]
[1727066900859,2.05,2658.6,2658.5,6.01393]
[1727066901752,2.05,2658.6,2658.5,5.6378]
[1727066902251,2.05,2658.6,2658.5,6.01393]
[1727066902450,2.05,2658.6,2658.5,5.6378]
[1727066902751,2.05,2658.6,2658.5,1.8762]
[1727066902953,2.05,2658.6,2658.5,5.6378]
[1727066903153,2.05,2658.6,2658.5,1.8762]
[1727066903454,2.05,2658.6,2658.5,1.258]
[1727066905255,2.05,2658.6,2658.3,0.6357]
[1727066905256,0.37613,2658.5,2658.3,0.6357]
[1727066905448,2.42612,2658.6,2658.3,1.2238]
[1727066905649,0.6389,2658.4,2658.2,0.00473281]
[1727066905850,2.42616,2658.3,2658.2,0.00473281]
[1727066906056,3.2078,2658.6,2658.2,0.00473281]
[1727066906257,2.20280649,2658.7,2658.2,0.00473281]
[1727066906258,2.05,2658.3,2658.2,0.00473281]
[1727066906957,2.42616,2658.3,2658.2,0.00473281]
[1727066907155,2.05,2658.3,2658.2,0.00473281]
[1727066910148,2.42616,2658.3,2658.2,0.00473281]
[1727066912955,2.05,2658.3,2658.2,0.00473281]
[1727066913353,2.42616,2658.3,2658.2,0.00473281]
[1727066913656,2.05,2658.4,2658.2,0.00473281]
[1727066913963,2.05,2658.4,2658.3,3.58395]
[1727066914155,2.05,2658.4,2658.3,7.93955]
[1727066914359,2.05,2658.4,2658.3,8.53255]
[1727066914552,2.05,2658.4,2658.3,4.77095]
[1727066914763,2.05,2658.4,2658.3,8.53255]
[1727066916465,2.05,2658.6,2658.3,14.1564]
[1727066916655,2.05,2658.6,2658.5,0.37613]
[1727066916860,2.05,2658.9,2658.4,4.4023]
[1727066917059,6.177,2659.3,2659.1,0.37604]
[1727066917261,2.05,2659.3,2659.2,3.8485]
[1727066917460,2.05,2659.3,2659.2,46.24183]
[1727066917657,2.05,2659.3,2659.2,45.8658]
[1727066918063,2.05,2659.3,2659.2,1.858]
[1727066918365,2.05,2659.3,2659.2,9.20263]
[1727066918969,0.97000649,2659.8,2659.2,14.8266]
[1727066919259,2.53939422,2660.1,2659.7,3.2078]
[1727066919260,2.05,2660.1,2659.7,3.2078]
[1727066919460,2.05,2660.1,2660.0,3.2078]
[1727066919656,2.05,2660.1,2660.0,3.58372]
[1727066919853,2.05,2660.3,2660.0,7.34291]
[1727066920056,2.05,2660.1,2660.0,3.2078]
[1727066920270,2.05,2660.1,2660.0,3.58372]
[1727066920470,2.05,2660.1,2660.0,7.34292]
[1727066921063,2.05,2660.1,2660.0,6.967]
[1727066921472,2.05,2660.3,2660.0,7.34292]
[1727066921769,2.05,2660.3,2660.0,3.58372]
[1727066923362,2.05,2660.3,2660.0,3.2078]
[1727066923761,2.05,2660.1,2660.0,3.2078]
[1727066924161,2.05,2660.1,2660.0,3.58372]
[1727066924969,2.05,2660.3,2660.2,0.37589]
[1727066925466,2.05,2660.3,2660.1,0.3759]
[1727066925662,2.05,2660.3,2660.2,0.37589]
[1727066925970,2.05,2660.5,2660.3,0.37587]
[1727066926169,2.05,2660.5,2660.4,0.5912]
[1727066926363,2.05,2660.5,2660.4,0.96706]
[1727066926571,2.05,2660.5,2660.4,1.2314]
[1727066927673,2.05,2660.5,2660.4,1.60726]
[1727066927968,4.17780649,2661.0,2660.4,10.9898]
[1727066928164,4.127,2661.1,2660.5,3.2078]
[1727066928370,2.05,2661.2,2661.0,3.2078]
[1727066928569,0.37576,2661.1,2660.6,3.58362]
[1727066928760,2.05,2660.9,2660.6,3.2078]
[1727066928966,2.05,2660.9,2660.7,0.37582]
[1727066929972,2.05,2660.9,2660.7,0.37581]
[1727066930171,2.05,2660.9,2660.6,3.58362]
[1727066930774,2.05,2660.9,2660.7,0.37582]
[1727066931172,2.05,2660.9,2660.6,3.58363]
[1727066931373,2.05,2660.9,2660.8,0.3758]
[1727066931873,2.05,2661.1,2660.9,0.37578]
[1727066932171,2.05,2661.1,2661.0,0.588]
[1727066933795,2.42576,2661.1,2660.9,3.2078]
[1727066934072,2.05,2661.1,2660.9,3.2078]
[1727066934780,0.5868,2661.0,2660.9,3.2078]
[1727066935479,3.3102,2661.1,2660.9,3.2078]
[1727066935676,2.05,2661.1,2660.9,3.2078]
[1727066935875,2.05,2661.1,2661.0,0.6441]
[1727066936982,5.8076,2661.1,2660.6,3.2078]
[1727066937178,3.2078,2661.3,2660.6,3.2078]
[1727066937179,2.05,2660.9,2660.6,3.2078]
[1727066937482,3.2078,2661.3,2660.8,0.37579]
[1727066937483,2.05,2661.1,2660.8,0.37579]
[1727066937679,2.05,2661.1,2660.9,3.2078]
[1727066937883,2.05,2661.1,2660.9,3.7925]
[1727066938979,2.05,2661.1,2660.9,0.5847]
[1727066939167,6.9654,2661.0,2659.7,3.2078]
[1727066939372,2.05,2660.7,2660.2,0.6429]
[1727066939578,2.05,2660.7,2660.3,0.97377]
[1727066939973,2.05,2660.7,2660.3,4.18157]
[1727066940173,2.05,2660.7,2660.3,3.8057]
[1727066940782,2.05,2660.4,2660.3,3.2078]
[1727066943674,1.2028,2660.9,2660.3,3.2078]
[1727066943980,1.2028,2660.9,2660.3,3.58367]
[1727066943981,2.05,2660.8,2660.3,3.58367]
[1727066944180,2.42581,2660.8,2660.4,0.6381]
[1727066944582,2.05,2660.6,2660.4,0.6381]
[1727066944975,2.05,2660.6,2660.3,3.2078]
[1727066947378,2.42584,2660.6,2660.3,3.2078]
[1727066948279,2.05,2660.6,2660.3,3.2078]
[1727066948582,2.05,2660.6,2660.3,3.58366]
[1727066948776,2.05,2660.8,2660.4,0.37585]
[1727066948977,2.05,2661.1,2660.6,0.37582]
[1727066949180,2.05,2661.1,2660.6,3.2078]
[1727066949377,4.4088,2661.3,2660.9,3.58358]
[1727066949378,3.251,2661.3,2660.9,3.58358]
[1727066949580,3.251,2661.3,2660.9,3.2078]
[1727066949772,2.6321,2661.3,2660.9,3.58358]
[1727066949991,3.00783,2661.3,2660.9,3.2078]
[1727066950185,2.6321,2661.3,2660.9,3.58359]
[1727066950786,2.6321,2661.3,2660.9,3.58358]
[1727066950987,2.6321,2661.3,2660.9,3.2078]
[1727066951184,2.6321,2661.3,2660.9,3.58358]
[1727066952474,2.05,2661.1,2660.9,3.2078]
[1727066954882,2.05,2661.1,2661.0,0.37577]
[1727066955084,2.05,2661.1,2661.0,0.6181]
[1727066956186,2.05,2661.1,2661.0,0.99387]
[1727066957086,9.3848,2661.6,2661.0,10.3757]
[1727066957288,9.7605,2661.6,2661.0,0.99386]
[1727066957488,7.7105,2661.6,2661.0,41.79386]
[1727066957784,2.05,2661.4,2661.1,0.37576]
[1727066957987,2.05,2661.4,2661.2,0.6325]
[1727066958188,2.05,2661.4,2661.2,1.2179]
[1727066962488,3.01392563,2661.4,2661.2,1.2179]
[1727066962696,3.01392563,2661.4,2661.2,0.6325]
[1727066962894,3.01392563,2661.4,2660.4,4.4591]
[1727066962895,6.47496792,2661.3,2660.4,4.4591]
[1727066963083,2.05,2661.1,2660.8,3.58359]
[1727066963393,3.01995417,2661.1,2660.9,1.2474]
[1727066963888,2.05,2661.1,2660.9,1.2474]
[1727066964089,3.01995417,2661.1,2660.9,1.2474]
[1727066964290,3.01995417,2661.1,2660.8,3.2078]
[1727066964486,0.96995417,2660.9,2660.8,3.8461]
[1727066965083,1.45736792,2660.9,2660.8,3.8461]
[1727066965487,1.64536275,2660.9,2660.8,0.6383]
[1727066965989,1.64536275,2660.9,2660.5,44.0078]
[1727066965990,0.37581,2660.8,2660.5,3.2078]
[1727066966189,0.97106595,2660.6,2660.5,3.2078]
[1727066966400,1.45659893,2660.6,2660.5,3.2078]
[1727066968279,0.1880125,2660.6,2660.5,3.2078]
[1727066968484,2.1301444,2660.7,2660.5,3.2078]
[1727066968686,0.1880125,2660.6,2660.5,3.2078]
[1727066969091,2.1301444,2660.7,2660.5,3.2078]
[1727066969285,0.1880125,2660.6,2660.5,3.2078]
[1727066969884,2.5059644,2660.7,2660.5,3.2078]
[1727066970081,4.1801444,2660.6,2660.5,3.2078]
[1727066971200,4.1801444,2660.6,2660.1,4.84349]
[1727066971399,0.97133667,2660.4,2660.1,4.84349]
[1727066971590,3.02133667,2660.4,2660.1,3.2078]
[1727066971794,0.97133667,2660.2,2660.1,3.2078]
[1727066972091,1.457005,2660.2,2660.1,3.2078]
[1727066972798,1.457005,2660.2,2660.1,3.5837]
[1727066973097,0.18803936,2660.3,2660.1,3.5837]
[1727066973098,0.9712048,2660.3,2660.1,3.5837]
[1727066974193,0.9712048,2660.3,2660.1,3.2078]
[1727066975096,3.507005,2660.2,2659.9,1.2446]
[1727066975298,3.02098252,2660.0,2659.9,1.2446]
[1727066975501,3.507005,2660.0,2659.9,1.2446]
[1727066975694,10.474005,2660.0,2659.2,0.37602]
[1727066976002,2.05,2659.4,2659.2,1.8074]
[1727066976201,3.02068259,2659.6,2659.3,0.37601]
[1727066976595,3.02068259,2659.6,2659.2,42.98342]
[1727066976904,2.05,2659.6,2659.2,42.6074]
[1727066977098,2.05,2659.6,2659.3,0.37601]
[1727066977997,0.97068259,2659.8,2659.2,42.6074]
[1727066978205,5.09768259,2660.0,2659.5,0.37598]
[1727066978400,5.09768259,2660.0,2659.6,0.96457]
[1727066978401,0.97068259,2660.0,2659.6,0.96457]
[1727066978701,0.97068259,2660.0,2659.7,4.4455]
[1727066979004,0.97068259,2660.4,2660.1,0.3759]
[1727066979201,3.02068259,2660.5,2660.2,1.57739]
[1727066979504,3.02068259,2660.5,2660.3,0.6248]
[1727066979505,2.05,2660.5,2660.3,0.6248]
[1727066980596,1.94731259,2660.6,2660.3,0.6248]
[1727066980798,1.57148259,2660.6,2660.3,0.6248]
[1727066983593,3.02068259,2660.7,2660.3,1.00067]
[1727066985399,3.02068259,2660.7,2660.3,0.6248]
[1727066985608,0.97068259,2660.7,2660.4,3.2078]
[1727066985799,0.97068259,2660.9,2660.5,0.37583]
[1727066986104,0.97068259,2660.9,2660.6,0.37583]
[1727066986314,0.97068259,2660.9,2660.7,0.6105]
[1727066986615,0.97068259,2661.2,2660.9,0.37578]
[1727066987301,0.97068259,2661.3,2660.9,0.37578]
[1727066987500,0.97068259,2661.3,2660.8,4.4212]
[1727066988008,0.97068259,2661.4,2661.2,0.37574]
[1727066988210,0.97068259,2661.5,2661.3,1.2566]
[1727066988413,0.97068259,2661.5,2660.8,5.8791]
[1727066988612,0.97068259,2661.5,2660.9,1.2566]
[1727066988910,0.97068259,2661.5,2661.1,0.37575]
[1727066990504,2.05,2661.4,2660.9,1.63238]
[1727066990708,0.6151,2661.3,2660.9,1.2566]
[1727066991908,3.02068259,2661.4,2660.9,1.2566]
[1727066992113,3.02068259,2661.4,2661.0,0.37576]
[1727066992316,2.05,2661.4,2661.1,0.37576]
[1727066992614,0.97068259,2661.5,2661.0,0.37577]
[1727066993711,1.34638259,2661.5,2661.0,0.37577]
[1727066995112,0.97068259,2661.5,2660.9,1.63238]
[1727066995308,0.97068259,2661.4,2660.9,1.63238]
[1727066995814,0.97068259,2661.4,2661.1,0.37576]
[1727066996000,0.97068259,2661.4,2661.0,0.37577]
[1727066996199,1.34638259,2661.5,2661.1,3.2078]
[1727066996411,0.97068259,2661.4,2661.1,3.2078]
[1727066997401,1.34638259,2661.5,2661.1,3.2078]
[1727066998616,0.97068259,2661.5,2661.1,3.2078]
[1727066999809,4.17848259,2661.6,2661.3,0.37573]
[1727067000017,3.2078,2661.6,2661.4,1.2837]
[1727067000214,3.2078,2661.6,2661.2,3.2078]
[1727067000215,6.22848259,2661.6,2661.2,3.2078]
[1727067000521,0.97852,2661.5,2661.2,3.2078]
[1727067001214,0.37576,2661.1,2660.8,3.2078]
[1727067001407,0.6053,2661.0,2660.8,3.2078]
[1727067002810,0.97068259,2661.2,2660.9,0.37579]
[1727067003016,4.17848259,2661.3,2660.8,3.5836]
[1727067003222,0.97068259,2661.3,2660.8,3.5836]
[1727067003520,0.97068259,2661.2,2660.8,3.5836]
[1727067004525,0.97068259,2661.2,2660.9,0.37579]
[1727067005012,0.97068259,2661.2,2661.0,0.6415]
[1727067005414,0.97068259,2661.1,2660.8,3.2078]
[1727067005716,0.97068259,2661.1,2660.8,3.8406]
[1727067006120,0.37579,2660.9,2660.7,0.6437]
[1727067006316,0.37584,2660.6,2660.2,0.6328]
[1727067006512,0.37585,2660.5,2660.2,1.2672]
[1727067006712,1.34509852,2660.4,2660.2,1.2672]
[1727067006916,1.34509852,2660.3,2660.2,1.2672]
[1727067007122,0.96922852,2660.3,2660.2,1.2672]
[1727067008823,1.34509852,2660.3,2660.2,0.6344]
[1727067009824,1.34509852,2660.3,2659.9,1.1905]
[1727067010025,1.34509852,2660.3,2660.0,0.6232]
[1727067010324,0.96922852,2660.3,2660.0,0.6232]
[1727067010528,1.34509852,2660.4,2660.0,0.6232]
[1727067010712,0.96922852,2660.4,2660.0,0.6232]
[1727067011027,1.34509852,2660.4,2660.0,0.6232]
[1727067011329,0.96922852,2660.4,2660.0,0.6232]
[1727067011623,1.58162852,2660.3,2660.0,0.6232]
[1727067011921,3.7592,2660.2,2659.8,3.2078]
[1727067012129,0.37597,2659.6,2659.5,3.8515]
[1727067012420,0.37597,2659.6,2659.5,3.2078]
[1727067012919,0.37597,2659.6,2659.3,0.6437]
[1727067013123,0.37598,2659.6,2659.3,0.6437]
[1727067013316,3.39518852,2659.7,2659.3,0.6437]
[1727067014423,0.37597,2659.6,2659.3,0.6437]
[1727067014621,3.01922852,2659.7,2659.3,0.6437]
[1727067014622,0.376,2659.5,2659.3,0.6437]
[1727067014820,0.37606,2659.0,2658.7,3.2078]
[1727067015332,2.42606,2659.0,2658.7,3.2078]
[1727067015619,2.05,2659.0,2658.7,3.2078]
[1727067015826,0.37609,2658.8,2658.7,3.2078]
[1727067016016,0.3761,2658.7,2658.5,1.2278]
[1727067016217,2.05,2658.8,2658.5,1.2278]
[1727067016218,0.37611,2658.6,2658.5,1.2278]
[1727067016529,2.05,2658.8,2658.2,3.21253281]
[1727067016530,3.2078,2658.7,2658.2,0.00473281]
[1727067016729,2.05,2658.8,2658.3,1.2278]
[1727067017220,2.05,2658.8,2658.3,1.60395]
[1727067018128,2.05,2658.8,2658.3,1.2278]
[1727067018428,2.05,2658.8,2658.3,1.60395]
[1727067018633,2.18112852,2659.2,2658.7,0.37609]
[1727067018634,2.05,2659.2,2658.7,0.37609]
[1727067018820,2.05,2659.2,2658.8,0.6411]
[1727067019127,2.05,2659.2,2658.9,0.6364]
[1727067021035,2.42604,2659.2,2658.9,0.6364]
[1727067021329,2.05,2659.2,2658.9,0.6364]
[1727067021730,2.05,2659.5,2658.9,0.6364]
[1727067021921,2.05,2659.5,2659.0,3.58385]
[1727067022229,2.05,2659.5,2659.1,41.79844]
[1727067022724,3.2078,2659.6,2659.1,41.4224]
[1727067023326,3.01634,2659.9,2659.4,0.37599]
[1727067023520,2.05,2659.9,2659.5,1.237]
[1727067023832,13.71890852,2660.4,2659.9,0.37592]
[1727067023833,5.2578,2660.3,2659.9,0.37592]
[1727067024023,2.05,2660.3,2660.0,0.6342]
[1727067024225,2.05,2660.3,2660.1,0.6182]
[1727067025730,3.2078,2660.6,2660.1,0.6182]
[1727067025935,2.42582,2660.8,2660.1,0.6182]
[1727067025936,2.42582,2660.8,2660.3,0.37586]
[1727067026122,2.42582,2660.8,2660.2,3.2078]
[1727067026123,0.37582,2660.7,2660.2,3.58368]
[1727067026325,0.37581,2660.8,2660.2,3.2078]
[1727067026525,3.2078,2660.9,2660.4,0.37585]
[1727067026526,3.5836,2660.9,2660.4,0.37585]
[1727067026731,3.2078,2660.9,2660.5,0.37584]
[1727067027031,1.8455,2661.1,2660.7,0.37582]
[1727067027233,3.58355,2661.2,2660.8,0.6422]
[1727067027234,3.2078,2661.2,2660.8,0.6422]
[1727067027735,3.58355,2661.2,2660.8,0.6422]
[1727067027938,0.37578,2661.0,2660.8,0.6422]
[1727067028139,0.37577,2661.1,2660.8,0.6422]
[1727067028428,6.11356,2661.2,2660.8,0.6422]
[1727067028622,5.7378,2661.2,2660.8,0.6422]
[1727067029035,0.37577,2661.1,2660.8,0.6422]
[1727067030834,3.2078,2660.9,2660.3,3.8415]
[1727067031031,5.7378,2660.6,2659.6,3.2078]
[1727067031235,3.2078,2660.3,2659.8,0.37593]
[1727067031435,3.2078,2660.3,2659.9,0.37593]
[1727067031637,0.37585,2660.5,2660.0,0.37591]
[1727067032133,0.37585,2660.5,2660.0,3.58371]
[1727067032432,2.53,2660.6,2660.0,3.58371]
[1727067033238,0.6058,2660.7,2660.0,3.2078]
[1727067033442,0.37586,2660.5,2660.0,3.58371]
[1727067033635,0.37586,2660.5,2660.0,3.2078]
[1727067034538,0.37586,2660.5,2660.0,3.58371]
[1727067034731,0.37586,2660.4,2660.0,3.2078]
[1727067035433,0.37589,2660.2,2660.0,3.2078]
[1727067035628,0.37588,2660.3,2660.0,3.2078]
[1727067035840,0.37589,2660.2,2660.0,3.2078]
[1727067036232,0.37589,2660.2,2659.7,1.00116]
[1727067036430,0.37588,2660.3,2659.7,4.20896]
[1727067036835,0.37588,2660.3,2659.7,1.00116]
[1727067038444,4.17702852,2660.5,2660.1,0.37589]
[1727067038628,3.2078,2660.5,2660.2,0.6096]
[1727067039228,4.17702852,2660.5,2660.2,0.6096]
[1727067039833,0.37586,2660.4,2660.2,0.6096]
[1727067040141,4.17702852,2660.5,2659.8,3.2078]
[1727067040440,3.2078,2660.2,2659.5,3.2078]
[1727067040637,3.2078,2660.2,2659.7,1.243]
[1727067040842,3.2078,2660.2,2659.8,0.37594]
[1727067041340,3.2078,2660.2,2659.9,0.37592]
[1727067042128,3.58369,2660.2,2659.8,0.37594]
[1727067042728,0.37588,2660.3,2659.8,0.37594]
[1727067043140,0.37588,2660.3,2659.9,0.37593]
[1727067043337,3.2078,2660.5,2659.9,0.37592]
[1727067043338,0.37586,2660.4,2659.9,0.37592]
[1727067044345,3.58365,2660.5,2660.0,0.37591]
[1727067044743,0.37587,2660.4,2659.9,0.37592]
[1727067045246,0.37586,2660.4,2659.9,0.37593]
[1727067046346,2.05,2660.3,2659.9,0.37593]
[1727067046941,2.6408,2660.3,2659.9,0.37593]
[1727067047642,6.60287852,2660.5,2660.0,0.37591]
[1727067047846,6.60287852,2660.5,2660.1,0.9843]
[1727067047847,6.22702852,2660.5,2660.1,0.9843]
[1727067048145,4.127,2660.9,2660.2,3.8378]
[1727067048456,4.127,2660.9,2660.6,0.37583]
[1727067048646,4.127,2660.9,2660.7,0.63]
[1727067048939,0.37579,2661.0,2660.7,0.63]
[1727067049139,0.37579,2660.9,2660.7,0.63]
[1727067053648,0.3758,2660.8,2660.3,0.37587]
[1727067053840,2.05,2660.4,2660.2,0.6342]
[1727067055650,0.96255,2660.5,2660.2,0.6342]
[1727067055954,1.93177852,2660.5,2660.2,0.6342]
[1727067056852,1.55592852,2660.5,2660.2,0.6342]
[1727067057152,5.664845,2660.6,2660.2,0.6342]
[1727067057153,0.96922852,2660.6,2660.2,0.6342]
[1727067057455,0.96922852,2660.7,2660.4,0.37586]
[1727067058153,6.714805,2660.5,2659.9,3.2078]
[1727067058476,2.05,2660.2,2660.0,0.6322]
[1727067058753,0.3759,2660.1,2660.0,0.6322]
[1727067059449,2.05,2660.2,2660.0,0.6322]
[1727067059651,0.3759,2660.1,2660.0,0.6322]
[1727067061948,3.7592,2660.0,2658.7,0.97640026]
[1727067062149,0.37601,2659.3,2658.8,0.5833]
[1727067062351,3.2078,2659.4,2658.8,1.2]
[1727067062352,0.37603,2659.2,2658.8,1.2]
[1727067062855,0.37602,2659.3,2658.8,1.2]
[1727067063042,6.86091,2659.4,2658.8,1.57608]
[1727067063546,0.37602,2659.3,2658.8,1.2]
[1727067063752,7.82937035,2659.4,2658.8,1.57608]
[1727067064257,6.86091,2659.4,2658.8,1.57609]
[1727067064455,7.82937035,2659.4,2658.8,1.57609]
[1727067066061,7.82937035,2659.4,2658.8,1.57608]
[1727067066363,7.82937035,2659.4,2658.8,1.2]
[1727067066558,4.17626035,2659.4,2658.8,1.2]
[1727067066758,4.17626035,2659.4,2658.9,3.2078]
[1727067066759,3.2078,2659.4,2658.9,3.2078]
[1727067066955,3.2078,2659.4,2659.0,0.6293]
[1727067067257,3.2078,2659.4,2659.2,0.37602]
[1727067067458,3.2078,2659.4,2659.3,0.5819]
[1727067067667,0.96846035,2659.7,2659.3,4.3419]
[1727067067866,5.1499319,2660.0,2659.4,0.5913]
[1727067067867,0.96846035,2659.9,2659.4,0.5913]
[1727067068057,0.96846035,2660.1,2659.7,0.37595]
[1727067068463,0.96846035,2660.1,2659.4,0.5913]
[1727067068765,1.34438035,2660.0,2659.5,41.17598]
[1727067068961,0.96846035,2659.9,2659.5,41.17598]
[1727067069860,0.96846035,2659.9,2659.7,0.37596]
[1727067070066,0.96846035,2660.0,2659.8,0.5944]
[1727067071450,0.96846035,2660.0,2659.8,0.97034]
[1727067071654,0.96846035,2660.1,2659.9,0.37593]
[1727067071858,0.96846035,2660.2,2659.8,0.97034]
[1727067072059,0.96846035,2660.2,2659.8,0.5944]
[1727067072259,0.96846035,2660.1,2659.8,0.5944]
[1727067075165,0.96846035,2660.1,2659.8,0.97034]
[1727067075364,1.64075758,2660.2,2659.8,0.97034]
[1727067075365,0.96846035,2660.2,2659.8,4.3536]
[1727067075566,0.96846035,2660.4,2660.1,0.3759]
[1727067075766,0.96846035,2660.4,2660.2,0.6143]